Cogmind - Beta 14 @@@ ROGUE MODE // 2024.08.21 @ 12:59:02 Player: Bt-7274 Result: Destroyed by C-17 Slicer with Concussive RPG Performance ------------- Evolutions (2) 1000 Regions Visited (3) 600 Robots Destroyed (35) 175 Value Destroyed (610) 610 Prototype IDs (9) 180 Alien Tech Used (0) 0 Bonus (0) 0 TOTAL SCORE: 2565 Bonus ------- None Cogmind --------- Core Integrity 0/550 Matter 276/300 Energy 98/100 System Corruption 1% Temperature Cool (0) Movement Core (50) Location -8/Materials Parts ------- > --- POWER (2) -------- (None) > --- PROPULSION (4) --- (None) > --- UTILITY (3) ------ (None) > --- WEAPON (2) ------- (None) > --- INVENTORY (5) ---- Mini Grenade Launcher Plasma Cutter Peak State ------------ > --- POWER ------------ Improved Ion Engine Cooled Deuterium Engine > --- PROPULSION ------- Aluminum Leg Aluminum Leg Aluminum Leg Wheel > --- UTILITY ---------- Small Storage Unit Visual Processing Unit > --- WEAPON ----------- Improved Medium Laser Improved Medium Laser > --- INVENTORY -------- Light Ion Engine Flight Unit Flight Unit Flight Unit Weight Redist. System Mini Grenade Launcher Plasma Cutter Spear [Rating: 21] Favorites ----------- Power Ion Engine Engine Ion Engine Propulsion Aluminum Leg Leg Aluminum Leg Wheel Wheel Flight Unit Flight Unit Utility Small Storage Unit Device Heat Sink Storage Small Storage Unit Processor Visual Processing Unit Weapon Light Assault Rifle Energy Gun EM Pulse Gun Ballistic Gun Light Assault Rifle Launcher Mini Grenade Launcher Piercing Weapon Spear Build | -11 -10 -9 -8 ------- Run | Yrd Mat Mat Mat Slots Evolved 4 | . . 2 2 Power 1 | . . . 1 Propulsion 2 | . . 2 . Utility 1 | . . . 1 Weapon . | . . . . Parts Attached 45 | 7 10 12 16 Power 9 | 1 1 4 3 Engine 9 | 1 1 4 3 Core . | . . . . Reactor . | . . . . Propulsion 16 | 2 3 3 8 Treads . | . . . . Leg 9 | 2 3 1 3 Wheel 2 | . . 2 . Hover . | . . . . Flight 5 | . . . 5 Utility 6 | 2 3 . 1 Device 3 | 1 1 . 1 Storage 1 | 1 . . . Processor 2 | . 2 . . Hackware . | . . . . Protection . | . . . . Artifact . | . . . . Weapon 14 | 2 3 5 4 Energy Gun 7 | . 3 4 . Energy Cannon . | . . . . Ballistic Gun 3 | 2 . 1 . Ballistic Cannon . | . . . . Launcher 1 | . . . 1 Special Weapon . | . . . . Impact Weapon . | . . . . Slashing Weapon . | . . . . Piercing Weapon 3 | . . . 3 Special Melee Weapon . | . . . . Unidentified Prototypes 3 | . . 2 1 Parts Lost 13 | . 1 1 11 Power 2 | . . . 2 Propulsion 6 | . . . 6 Utility 3 | . 1 . 2 Weapon 2 | . . 1 1 Highest Loss Streak 10 | . 1 1 10 To Critical Strikes . | . . . . Average Slot Usage (%) 90 | . 98 93 54 Engine 12 | . 14 11 8 Leg 24 | . 27 26 5 Wheel 5 | . . 13 . Flight 1 | . . . 13 Device 4 | . 7 . 6 Storage 11 | . 14 11 4 Processor 8 | . 5 11 9 Energy Gun 11 | . 8 17 . Ballistic Gun 9 | . 19 2 . Peak Build Rating 21 | 7 9 17 21 Average Rating 9 | 5 7 13 11 On Entrance 7 | . 7 8 16 Naked Turns . | . . . . Heaviest Build 18 | 14 14 18 18 Greatest Support 36 | 20 20 20 36 Greatest Overweight (x) 1 | . 1 1 1 Average Overweight (x) . | . . . . Largest Inventory Capacity 8 | 8 8 8 8 Average Capacity 7 | 7 8 8 6 Most Carried 8 | 8 8 8 8 Average Carried 6 | 4 7 6 3 Final Capacity 8 | 8 8 8 5 Final Carried 8 | 8 8 8 2 Class Distribution -------------------- 66% | Mutant 28% | Scavenger-Mutant 4% | Scavenger-Sprinter Dominant Class ---------------- Mutant | -10/Materials Scavenger-Mutant | -9/Materials Mutant | -8/Materials Resources | -11 -10 -9 -8 ----------- Run | Yrd Mat Mat Mat Matter Collected 781 | 302 232 146 101 Remotely . | . . . . Salvage Created 999 | 120 360 462 57 Parts 65 | 9 23 26 7 Haulers Intercepted 4 | . 1 3 . Recyclers Shooed 1 | 1 . . . Parts Field Recycled . | . . . . Retrieved Matter . | . . . . Parts Self-Destructed . | . . . . Prevented . | . . . . Kills | -11 -10 -9 -8 ------- Run | Yrd Mat Mat Mat Combat Hostiles Destroyed 18 | . 8 7 3 Guns 13 | . 7 6 . AOE 4 | . 1 . 3 Classes Destroyed 9 | 2 4 2 1 Builder 2 | . . . 2 Tunneler 2 | 2 . . . Hauler 4 | . 1 3 . Recycler 1 | 1 . . . Operator 2 | . . 2 . Watcher 6 | . 3 3 . Swarmer 9 | . 3 3 3 Grunt 7 | . 5 2 . Sentry 2 | . . 2 . Best Kill Streak 5 | 3 4 3 5 Combat Bots Only 3 | . 3 3 3 Max Kills in Single Turn 3 | 1 1 1 3 Gunslinging . | . . . . Exploded 2 | . 1 . 2 Melee . | . . . . Uniques/NPCs Destroyed . | . . . . Combat | -11 -10 -9 -8 -------- Run | Yrd Mat Mat Mat Hostile Shots Fired 177 | . 30 35 112 Missed 68 | . 3 14 51 Damage Taken 1555 | . 353 260 942 Core 699 | . 79 66 554 Absorbed by Shields . | . . . . Core Remaining (%) 83 | 100 68 83 . Volleys Fired 77 | 8 34 33 2 Largest 2 | 2 2 2 1 Hottest 112 | 40 80 112 30 Shots Fired 149 | 16 69 62 2 Gun 147 | 16 69 62 . Cannon . | . . . . Launcher 2 | . . . 2 Special . | . . . . Kinetic 85 | 16 65 4 . Thermal 36 | . . 36 . Explosive 2 | . . . 2 Electromagnetic 26 | . 4 22 . Robot Hit Streak 16 | 7 15 16 1 Robot Miss Streak 5 | 2 5 2 1 Penetration Max . | . . . . Secondary Targets 3 | . 2 1 . Max Gunslinging Chain 1 | . 1 1 . Shots Hit Robots 104 | 10 42 48 4 Core Hits 55 | 4 24 21 6 Critical Kills . | . . . . Critical Parts Destroyed 1 | . . 1 . Critical Strikes 4 | . . 4 . Burn 3 | . . 3 . Destroy 1 | . . 1 . Melee Attacks 6 | . . . 6 Impact . | . . . . Slashing . | . . . . Piercing 6 | . . . 6 Sneak Attacks 2 | . . . 2 Combat Hostiles . | . . . . Follow-up Attacks . | . . . . Damage Inflicted 2004 | 102 534 950 418 Guns 1492 | 102 488 902 . Cannons . | . . . . Explosions 328 | . 46 46 236 Melee 182 | . . . 182 Ramming 2 | . . 2 . Kinetic 580 | 102 430 48 . Thermal 568 | . 46 522 . Explosive 236 | . . . 236 Electromagnetic 436 | . 58 378 . Impact . | . . . . Slashing . | . . . . Piercing 182 | . . . 182 Highest Corruption 2 | . 2 . . Average Corruption 2 | . 2 . . Corruption Purged . | . . . . Corruption Blocked . | . . . . Effects 13 | . 13 . . Message Errors 3 | . 3 . . Matter Fused 1 | . 1 . . Heat Flow Errors 4 | . 4 . . Energy Discharges 3 | . 3 . . Data Loss (minor) 1 | . 1 . . Misfires 1 | . 1 . . Overload Shots . | . . . . Overflow Damage . | . . . . Projectiles . | . . . . Explosions . | . . . . Melee . | . . . . Knockbacks . | . . . . Impact . | . . . . Kinetic . | . . . . Secondary . | . . . . Self-Inflicted Damage 120 | . 34 54 32 Shots 4 | . 1 2 1 Rammed 1 | . . 1 . Targets Rammed 1 | . . 1 . Kicked . | . . . . Crushed . | . . . . Highest Temperature 264 | . 264 225 7 Average Temperature 57 | . 54 62 4 Received Heat Transfer 450 | . 159 39 252 Siege Activations . | . . . . Robots Corrupted . | . . . . Combat Hostiles . | . . . . Parts Fried 6 | . 1 5 . Impact Corruptions . | . . . . Robots Melted 1 | . . 1 . Combat Hostiles 1 | . . 1 . Parts Melted 1 | . . 1 . Heat Transferred 1358 | . 50 1308 . Parts Sabotaged . | . . . . Parts Stolen . | . . . . Parts Stripped . | . . . . Power Chain Reactions 3 | . 1 2 . Alert | -11 -10 -9 -8 ------- Run | Yrd Mat Mat Mat Peak Influence 656 | 15 239 199 656 Initial 83 | . 9 . 83 Average 78 | 4 51 56 262 Maximum Alert Level 2 | . 1 . 2 Low Security (%) 92 | 100 96 100 54 Level 1 3 | . 3 . 17 Level 2 3 | . . . 27 Level 3 . | . . . . Level 4 . | . . . . Level 5 . | . . . . High Security . | . . . . Max Security . | . . . . Squads Dispatched 7 | . 2 2 3 Investigation 2 | . 2 . . Extermination . | . . . . Reinforcement 5 | . . 2 3 Assault . | . . . . Garrison . | . . . . Intercept . | . . . . Searches Triggered . | . . . . Construction Impeded . | . . . . Haulers Reinforced . | . . . . Active Scanning Responses . | . . . . Cargo Convoy Interrupts . | . . . . Stealth | -11 -10 -9 -8 --------- Run | Yrd Mat Mat Mat Distress Signals 4 | . 1 1 2 Communications Jammed . | . . . . Distress Signals . | . . . . Times Spotted 64 | . 12 15 37 Peak Tracking Total 13 | . 5 4 13 Tactical Retreats 8 | . . 2 6 Traps | -11 -10 -9 -8 ------- Run | Yrd Mat Mat Mat Traps Triggered 4 | . 4 . . Indirectly . | . . . . Trap Hack Attempts . | . . . . Triggered . | . . . . Disarmed . | . . . . Reprogrammed . | . . . . Reused . | . . . . Traps Extracted . | . . . . Installed . | . . . . Triggered . | . . . . Machines | -11 -10 -9 -8 ---------- Run | Yrd Mat Mat Mat Machines Disabled . | . . . . Max in Single Turn . | . . . . Machines Repaired . | . . . . Machines Dismantled . | . . . . Machines Sabotaged . | . . . . Overloaded Fab Kills . | . . . . Hacking | -11 -10 -9 -8 --------- Run | Yrd Mat Mat Mat Machines Accessed 12 | . 6 5 1 Terminals 10 | . 5 4 1 Fabricators . | . . . . Repair Stations . | . . . . Recycling Units 1 | . 1 . . Scanalyzers 1 | . . 1 . Garrison Access . | . . . . Total Hacks 39 | . 16 20 3 Successful 19 | . 4 13 2 Failed 20 | . 12 7 1 Catastrophic 5 | . 2 2 1 Database Lockouts . | . . . . Manual 17 | . 8 7 2 Terminals 29 | . 15 11 3 Fabricators . | . . . . Repair Stations . | . . . . Recycling Units 1 | . 1 . . Scanalyzers 9 | . . 9 . Garrison Access . | . . . . Terminal Hacks 11 | . 4 5 2 Record 1 | . . . 1 Prototype ID Bank 3 | . 1 2 . Level Access Points 1 | . . . 1 Terminal Index 2 | . 1 1 . Alert Level 1 | . . 1 . Unreport Threat 2 | . 1 1 . Locate Traps 1 | . 1 . . Fabricator Hacks . | . . . . Repair Station Hacks . | . . . . Recycling Unit Hacks . | . . . . Scanalyzer 8 | . . 8 . Insert Component 4 | . . 4 . Analyze 4 | . . 4 . Garrison Access Hacks . | . . . . Unauthorized Hacks . | . . . . Terminals . | . . . . Fabricators . | . . . . Repair Stations . | . . . . Recycling Units . | . . . . Scanalyzers . | . . . . Garrison Access . | . . . . Data Cores Recovered . | . . . . Used . | . . . . Hacking Detections 12 | . 6 5 1 Full Trace Events 2 | . 2 . . Feedback Events . | . . . . Feedback Blocked . | . . . . Robot Schematics Acquired . | . . . . Robots Built . | . . . . Authchips . | . . . . Time . | . . . . Total Robot Build Rating . | . . . . Part Schematics Acquired 4 | . . 4 . Parts Built . | . . . . Authchips . | . . . . Time . | . . . . Total Part Build Rating . | . . . . Parts Repaired . | . . . . Time . | . . . . Parts Recycled . | . . . . Recycled Matter . | . . . . Retrieved Matter . | . . . . Retrieved Components . | . . . . Parts Scanalyzed 4 | . . 4 . Part Schematics Acquired 4 | . . 4 . Parts Damaged . | . . . . Bothacking | -11 -10 -9 -8 ------------ Run | Yrd Mat Mat Mat Used RIF Installer . | . . . . Robots Hacked . | . . . . Non-combat . | . . . . Combat . | . . . . Robot Hacks Applied . | . . . . Relay Couplers Released . | . . . . Fabnet Peak Effective % . | . . . . Robots Rewired . | . . . . Allies Hacked . | . . . . Hacks Repelled . | . . . . Allies | -11 -10 -9 -8 -------- Run | Yrd Mat Mat Mat Total Allies . | . . . . Largest Group . | . . . . Highest-Rated Group . | . . . . Highest-Rated Ally . | . . . . Total Orders . | . . . . Ally Attacks . | . . . . Total Damage . | . . . . Kills . | . . . . Allies Corrupted . | . . . . Allies Melted . | . . . . Intel | -11 -10 -9 -8 ------- Run | Yrd Mat Mat Mat Robot Analysis Total . | . . . . Derelict Logs Recovered . | . . . . Drone Launches . | . . . . Drone Recoveries . | . . . . Exploration | -11 -10 -9 -8 ------------- Run | Yrd Mat Mat Mat Turns Passed 1967 | 148 810 748 261 Spaces Moved 1502 | 89 475 528 410 Core 166 | 5 . . 161 Treads . | . . . . Legs 582 | 84 475 1 22 Wheels 534 | . . 527 7 Hover . | . . . . Flight 220 | . . . 220 Fastest Speed 29 | 50 120 80 29 Average Speed 89 | 116 120 90 45 Slowest Speed 190 | 120 190 190 120 Overloaded Moves . | . . . . Propulsion Burnouts . | . . . . Robots Hopped 12 | . . . 12 Cave-ins Triggered . | . . . . Exploration Rate (%) 35 | 4 55 34 49 Regions Visited 3 Branch Regions . Pre-discovered Areas . | . . . . Known Exits Taken . | . . . . Unknown Exits Taken 3 | 1 1 1 . Scrap Searched . | . . . . Spaces Dug 2 | . . . 2 Terrain Destroyed 32 | . 2 9 21 Melee 2 | . . . 2 Projectile . | . . . . AOE 30 | . 2 9 19 Terrain Rammed . | . . . . Walls Destroyed . | . . . . Machines Disabled . | . . . . Actions | -11 -10 -9 -8 --------- Run | Yrd Mat Mat Mat Total 1972 | 118 655 736 463 Wait 294 | . 117 147 30 Move 1478 | 88 474 527 389 Hop 9 | . . . 9 Pick Up 24 | 12 7 4 1 Fast Attach 25 | 6 8 8 3 Attach 11 | 1 . 3 7 Detach 2 | . . . 2 Swap 10 | . 2 2 6 Drop 35 | 3 13 11 8 Fire 77 | 8 34 33 2 Melee 6 | . . . 6 Ram 1 | . . 1 . Kick . | . . . . Crush . | . . . . Escape Stasis . | . . . . Rewire . | . . . . Trap . | . . . . Miscellaneous . | . . . . Route ------- -11/Scrapyard -10/Materials (discovered 2 exits: *Mat / [*Min]) -9/Materials -8/Materials (discovered 3 exits: *Fac x3) History --------- Turn | Location | Event 7 | -11/Scrapyard | Discovered new exit (range 15) 149 | -11/Scrapyard | Entered Materials 316 | -10/Materials | Build established: Mutant 811 | -10/Materials | Discovered new exit (range 9) 882 | -10/Materials | Discovered new exit (range 18) 959 | -10/Materials | Entered another Materials area 959 | -9/Materials | Evolved 2 slots: Propulsion x2 1655 | -9/Materials | Discovered new exit (range 11) 1659 | -9/Materials | Build established: Scavenger-Mutant 1707 | -9/Materials | Entered another Materials area 1707 | -8/Materials | Evolved 2 slots: Power x1, Utility x1 1861 | -8/Materials | Identified exit to Factory 1906 | -8/Materials | Core integrity fell below 50% 1927 | -8/Materials | Core integrity fell below 20% 1941 | -8/Materials | Lost 10 parts (2p6n1u1w) 1968 | -8/Materials | Destroyed by C-17 Slicer with Concussive RPG Last Messages --------------- 01896_ Sneak attack on A-02 Transporter. 01901_ VTOL Module destroyed. 01907_ Spear destroyed. 01908_ Critical hit (Burn: +37). 01910_ Weight Redist. System destroyed. 01913_ Acquired 11 matter. 01920_ Critical hit (Burn: +37). 01921_ ALERT: Hostiles spotted, dispatching reinforcements to Terminal M006. 01930_ K-01 Serf destroyed. 01933_ Critical hit (Burn: +37). 01944_ W-25 Informer sends out distress signal. 01945_ K-01 Serf collects debris. 01959_ ALERT: Suspicious intruders detected, dispatching Cutter reinforcements to area. 01966_ K-01 Serf collects debris. 01967_ Knocked back. 01967_ K-01 Serf destroyed. 01968_ Visual Processing Unit destroyed. 01968_ System corrupted by crushing effect (+1). Map ----- +----------------------------------------------------+ | #???????????????????????????? | | ?? *! #???????????????????????????? | | ????= #???????????????????????????? | | ?????? #???????????????????????????? | | ????????#???????????????????????????? | | ????????????????????????????????????? | | ????????????????????????????????????? | | ????????????????????????????????????? | | ????????????????????????????????????? | | ????????????????????????????????????? | | #???????????????????????????????????? | | #???????????????????????????????????? | | #???????????????????????????????????? | | #???????????????????????????????????? | | #??????????? ???????????????????????? | | #????????? ??????????????????????? | | #????????? ??????????????????????? | | #????????? ??????????????????????? | | ??????????# ??????????????????????? | | ???? ??????????????????????? | | ##????????# ??????#########???????? | | ??????????# ??????# #???????? | | ??????????# ??????# ""T"" #???????? | | ??????????# #?????# """"" #???????? | | ??????????# #???### #???????? | | ??????????# #####T#####@###???????? | | ??????????# = #?????????? | | ??????????# =%* #????????? | | ??????????+ ##???????? | | ??????????# c c ???????? | | ??????????# c ??????? | | ??????????# g # !?????? | | ??????????# ####### ## # ==????? | | ??????????# # ## ##?= ???? | | ??????????# # ## #??? ?? | | ??????????# + """ """??# #???? ? | | ??????????# # """ """??# #?????#### | | ??????????+ # """ ""???# ######???? | | ??????????# #? ??# #???? | | ??????????# #? = [ ?#! !#???? | | ??????????# #?? ??##!!!!##???? | | ??????????# ##?#######??######????? | | ????####### T#????????????????????? | | ##### # ##????????????????????? | | ## """ # #?????????????????????? | | ## "Y" # #?????????????????????? | | ## # #?????????????????????? | | ## # #?????????????????????? | | ## ! # #?????????????????????? | | ## # #?????????????????????? | +----------------------------------------------------+ Best States ------------- Heat Dissipation 35 Energy Generation 17 Energy Capacity 290 Matter Stores 300 Matter Capacity 300 Sight Range 18 Terrain Scan Density 10 Additional Mass Support 6 Evasion (%) 64 Item Schematics ----------------- Flight Unit | -9/Materials | Scanalyzed Lgt. Ion Engine | -9/Materials | Scanalyzed Mni. Grenade Launcher | -9/Materials | Scanalyzed Weight Redist. System | -9/Materials | Scanalyzed Robot Schematics ------------------ None Fabricated ------------ Nothing Alien Tech Used ----------------- None Achievements -------------- None Challenges ------------ None Game ------ Seed AngularBarragePropulsion Manual? 0 Play Time 00:24:14 Cumulative 41.8 hours Start 2024.08.21 @ 12:34:04 End 2024.08.21 @ 12:59:02 Sessions 1 Manual Loads 0 Difficulty Rogue Special Mode None Game No. 54 Rogue 54 Adventurer 0 Explorer 0 Win Type - Total 0 Types 0/0/0/0/0/0/0/0/0 Lore% 17 Gallery% 43 Achievement% 35 Wizard Run 0 Options --------- Layout 1 ASCII 0 Keyboard 0 Movement Numpad Keybinds 0 Fullscreen 1 Font 32/SmallcapsGlow Map View 50x35 Zoom Use 0% Tactical HUD 1 Map Filters NONE Filters NONE Steam 1 RUN: 6b018316-76ef-4f92-b056-46bc8f2119d6